fUSD/lending_fUSD_20240825
["ID","MTS","AMOUNT","RATE_DAILY","PERIOD"]
[335921717,1724601051931,-500.0,0.00010958,2]
[335921718,1724601051941,-697.48,0.00010958,2]
[335921719,1724601051951,-697.48,0.00010958,2]
[335921720,1724601051961,-500.0,0.00010958,2]
[335921721,1724601051971,-697.48,0.00010958,2]
[335921722,1724601051980,-524.48110845,0.00010958,2]
[335921723,1724601051989,-500.0,0.00010958,2]
[335921724,1724601051998,-500.0,0.00010958,2]
[335921725,1724601052007,-500.0,0.00010958,2]
[335921726,1724601052017,-500.0,0.00010958,2]
[335921727,1724601052026,-500.0,0.00010958,2]
[335921728,1724601052035,-500.0,0.00010958,2]
[335921729,1724601052044,-500.0,0.00010958,2]
[335921730,1724601052054,-500.0,0.00010958,2]
[335921731,1724601052064,-497.08503347,0.00010958,2]
[335921732,1724601052073,-500.0,0.00010958,2]
[335921733,1724601052083,-500.0,0.00010958,2]
[335921734,1724601052093,-500.0,0.00010958,2]
[335921735,1724601052102,-500.0,0.00010958,2]
[335921736,1724601052117,-500.0,0.00010958,2]
[335921737,1724601052126,-500.0,0.00010958,2]
[335921738,1724601052136,-442.65,0.00010958,2]
[335921739,1724601052146,-500.0,0.00010958,2]
[335921740,1724601052155,-500.0,0.00010958,2]
[335921741,1724601052165,-500.0,0.00010958,2]
[335921742,1724601052175,-500.0,0.00010958,2]
[335921743,1724601052184,-500.0,0.00010958,2]
[335921744,1724601052194,-1869.36,0.00010958,2]
[335921745,1724601052203,-500.0,0.00010958,2]
[335921746,1724601052213,-1869.36,0.00010958,2]
[335921747,1724601052222,-1869.36,0.00010958,2]
[335921748,1724601052232,-1869.36,0.00010958,2]
[335921749,1724601052241,-1869.36,0.00010958,2]
[335921750,1724601052250,-1869.36,0.00010958,2]
[335921751,1724601052263,-500.0,0.00010958,2]
[335921752,1724601052272,-500.0,0.00010958,2]
[335921753,1724601052281,-500.0,0.00010958,2]
[335921754,1724601052291,-500.0,0.00010958,2]
[335921755,1724601052300,-500.0,0.00010958,2]
[335921756,1724601052309,-500.0,0.00010958,2]
[335921757,1724601052318,-500.0,0.00010958,2]
[335921758,1724601052327,-500.0,0.00010958,2]
[335921759,1724601052337,-500.0,0.00010958,2]
[335921760,1724601052346,-500.0,0.00010958,2]
[335921761,1724601052356,-500.0,0.00010958,2]
[335921762,1724601052366,-500.0,0.00010958,2]
[335921763,1724601052375,-500.0,0.00010958,2]
[335921764,1724601052384,-500.0,0.00010958,2]
[335921765,1724601052394,-604.16,0.00010958,2]
[335921766,1724601052403,-501.28020786,0.00010958,2]
[335921767,1724601052413,-341.80703535,0.00010958,2]
[335921768,1724601052422,-500.0,0.00010958,2]
[335921769,1724601052431,-268.8,0.00010958,2]
[335921770,1724601052441,-483.19879107,0.00010958,2]
[335921771,1724601052450,-500.0,0.00010958,2]
[335921772,1724601052459,-500.0,0.00010958,2]
[335921773,1724601052469,-500.0,0.00010958,2]
[335921774,1724601052478,-500.0,0.00010958,2]
[335921775,1724601052487,-500.0,0.00010958,2]
[335921776,1724601052496,-379.90872022,0.00010958,2]
[335921777,1724601052505,-500.0,0.00010958,2]
[335921778,1724601052514,-569.46054059,0.00010958,2]
[335921779,1724601052524,-20000.0,0.00010958,2]
[335921780,1724601052533,-9266.63790804,0.00010958,2]
[335921781,1724601052594,-10733.36209196,0.00010958,2]
[335921782,1724601052603,-20000.0,0.00010958,2]
[335921783,1724601052612,-5916.12402215,0.00010958,2]
[335921784,1724601052622,-189.07778673,0.00010958,2]
[335921785,1724601052632,-151.3,0.00010959,2]
[335921786,1724601052642,-157.34,0.00010959,2]
[335921787,1724601052652,-241.93,0.00010959,2]
[335921788,1724601052661,-2000.0,0.00010959,2]
[335921789,1724601052670,-1500.0,0.00010959,2]
[335921790,1724601052680,-2264.19216717,0.00010959,2]
[335921791,1724601052695,-1720.3100005,0.00010959,2]
[335921792,1724601052707,-328.04999985,0.00010959,2]
[335921793,1724601052894,-1077.564,0.00010854,2]
[335921794,1724601052904,-869.74783248,0.00010959,2]
[335921795,1724601052913,-342.6037674,0.00010959,2]
[335921796,1724601052929,-459.1962326,0.00010959,2]
[335921797,1724601052938,-150.0,0.00010959,2]
[335921798,1724601052948,-47.1737674,0.00010959,2]
[335921799,1724601052959,-133.0762326,0.00010959,2]
[335921800,1724601052969,-3280.42,0.00010959,2]
[335921801,1724601052979,-250.0,0.00010959,2]
[335921802,1724601052989,-207.97,0.00010959,2]
[335921803,1724601052998,-173.31,0.00010959,2]
[335921804,1724601053007,-866.55,0.00010959,2]
[335921805,1724601053017,-155.96537388,0.00010973,2]
[335921806,1724601053027,-200.48212571,0.00010973,2]
[335921807,1724601053036,-48.30530687,0.00010973,2]
[335921808,1724601053047,-451.69469313,0.00010973,2]
[335921809,1724601053057,-200.34512745,0.00010973,2]
[335921810,1724601053067,-1763.81456505,0.00010987,2]
[335921811,1724601053076,-500.0,0.00010988,2]
[335921812,1724601053086,-500.0,0.00010988,2]
[335921813,1724601053095,-632.94,0.00010988,2]
[335921814,1724601053106,-500.0,0.00010988,2]
[335921815,1724601053115,-842.65,0.00010988,2]
[335921816,1724601053125,-508.59,0.00010988,2]
[335921817,1724601053135,-150.0,0.00010988,2]
[335921818,1724601053145,-1526.34,0.00010988,2]
[335921819,1724601053154,-789.89,0.00010988,2]
[335921820,1724601053164,-648.04,0.00010988,2]
[335921821,1724601053173,-500.0,0.00010988,2]
[335921822,1724601053183,-844.05,0.00010988,2]
[335921823,1724601053193,-500.0,0.00010988,2]
[335921824,1724601053202,-563.19916896,0.00010988,2]
[335921825,1724601053212,-943.33,0.00010988,2]
[335921826,1724601053222,-8214.0,0.00010988,2]
[335921827,1724601053232,-657.17,0.00010988,2]
[335921828,1724601053242,-500.0,0.00010988,2]
[335921829,1724601053251,-910.95,0.00010988,2]
[335921830,1724601053264,-6117.28,0.00010988,2]
[335921831,1724601053273,-501.65,0.00010988,2]
[335921832,1724601053284,-500.0,0.00010988,2]
[335921833,1724601053294,-500.0,0.00010988,2]
[335921834,1724601053304,-606.45,0.00010988,2]
[335921835,1724601053313,-500.0,0.00010988,2]
[335921836,1724601053323,-3672.28,0.00010988,2]
[335921837,1724601053333,-500.0,0.00010988,2]
[335921838,1724601053342,-978.28,0.00010988,2]
[335921839,1724601053353,-500.0,0.00010988,2]
[335921840,1724601053362,-697.48,0.00010988,2]
[335921841,1724601053372,-500.0,0.00010988,2]
[335921842,1724601053382,-1869.36,0.00010988,2]
[335921843,1724601053392,-500.0,0.00010988,2]
[335921844,1724601053402,-524.0,0.00010989,2]
[335921845,1724601053411,-500.0,0.00010989,2]
[335921846,1724601053420,-500.0,0.00010989,2]
[335921847,1724601053431,-500.0,0.00010989,2]
[335921848,1724601053440,-500.0,0.00010989,2]
[335921849,1724601053450,-500.0,0.00010989,2]
[335921850,1724601053459,-500.0,0.00010989,2]
[335921851,1724601053469,-500.0,0.00010989,2]
[335921852,1724601053479,-500.0,0.00010989,2]
[335921853,1724601053489,-632.94,0.00010989,2]
[335921854,1724601053499,-500.0,0.00010989,2]
[335921855,1724601053508,-632.94,0.00010989,2]
[335921856,1724601053518,-632.94,0.00010989,2]
[335921857,1724601053527,-500.0,0.00010989,2]
[335921858,1724601053537,-632.94,0.00010989,2]
[335921859,1724601053547,-632.94,0.00010989,2]
[335921860,1724601053556,-842.65,0.00010989,2]
[335921861,1724601053565,-842.65,0.00010989,2]
[335921862,1724601053575,-842.65,0.00010989,2]
[335921863,1724601053585,-842.65,0.00010989,2]
[335921864,1724601053594,-842.65,0.00010989,2]
[335921865,1724601053604,-508.59,0.00010989,2]
[335921866,1724601053614,-508.59,0.00010989,2]
[335921867,1724601053623,-508.59,0.00010989,2]
[335921868,1724601053633,-508.59,0.00010989,2]
[335921869,1724601053642,-508.59,0.00010989,2]
[335921870,1724601053652,-150.0,0.00010989,2]
[335921871,1724601053662,-150.0,0.00010989,2]
[335921872,1724601053671,-150.0,0.00010989,2]
[335921873,1724601053680,-150.0,0.00010989,2]
[335921874,1724601053692,-150.0,0.00010989,2]
[335921875,1724601053703,-1526.34,0.00010989,2]
[335921876,1724601053712,-1526.34,0.00010989,2]
[335921877,1724601053722,-1526.34,0.00010989,2]
[335921878,1724601053731,-1526.34,0.00010989,2]
[335921879,1724601053742,-372.1253436,0.00010989,2]
[335921880,1724601053755,-1154.2146564,0.00010989,2]
[335921881,1724601053764,-316.30338313,0.00010989,2]
[335921882,1724601053781,-473.58661687,0.00010989,2]
[335921883,1724601053790,-319.14562596,0.00010989,2]
[335921884,1724601053802,-470.74437404,0.00010989,2]
[335921885,1724601053811,-789.89,0.00010989,2]
[335921886,1724601053820,-789.89,0.00010989,2]
[335921887,1724601053830,-789.89,0.00010989,2]
[335921888,1724601053839,-500.0,0.00010989,2]
[335921889,1724601053849,-500.0,0.00010989,2]
[335921890,1724601053861,-500.0,0.00010989,2]
[335921891,1724601053870,-500.0,0.00010989,2]
[335921892,1724601053880,-500.0,0.00010989,2]
[335921893,1724601053891,-500.0,0.00010989,2]
[335921894,1724601053901,-90.07056277,0.00010989,2]
[335921895,1724601053913,-691.79943723,0.00010989,2]
[335921896,1724601053922,-781.87,0.00010989,2]
[335921897,1724601053931,-781.87,0.00010989,2]
[335921898,1724601053941,-729.57783892,0.00010989,2]
[335921899,1724601053953,-52.29216108,0.00010989,2]
[335921900,1724601053962,-781.87,0.00010989,2]
[335921901,1724601053971,-781.87,0.00010989,2]
[335921902,1724601053982,-844.05,0.00010989,2]
[335921903,1724601053991,-844.05,0.00010989,2]
[335921904,1724601054001,-844.05,0.00010989,2]
[335921905,1724601054010,-844.05,0.00010989,2]
[335921906,1724601054019,-494.02076486,0.00010989,2]
[335921907,1724601054032,-350.02923514,0.00010989,2]
[335921908,1724601054042,-535.96,0.00010989,2]
[335921909,1724601054051,-535.96,0.00010989,2]
[335921910,1724601054061,-535.96,0.00010989,2]
[335921911,1724601054071,-535.96,0.00010989,2]
[335921912,1724601054080,-535.96,0.00010989,2]
[335921913,1724601054090,-500.0,0.00010989,2]
[335921914,1724601054100,-535.96,0.00010989,2]
[335921915,1724601054110,-500.0,0.00010989,2]
[335921916,1724601054120,-500.0,0.00010989,2]
[335921917,1724601054130,-500.0,0.00010989,2]
[335921918,1724601054140,-500.0,0.00010989,2]
[335921919,1724601054150,-704.50076485,0.00010989,2]
[335921920,1724601055253,377.35855902,7.054e-05,2]
[335921921,1724601059033,1152.74082596,7.054e-05,2]
[335921922,1724601059329,3578.57182493,7.054e-05,2]
[335921923,1724601059351,10189.6529417,7.054e-05,2]
[335921924,1724601072273,299.73978799,8.55e-05,2]
[335921925,1724601076443,2940.54198821,0.0001,2]
[335921926,1724601076472,1218.37602309,8.55e-05,2]
[335921927,1724601078842,275.24648864,8.55e-05,2]
[335921928,1724601079465,2161.75581874,8.55e-05,2]
[335921929,1724601079848,1033.43289267,8.55e-05,2]
[335921930,1724601082191,529.27280231,8.55e-05,2]
[335921931,1724601082383,413.27,8.55e-05,2]
[335921932,1724601082662,254.51287581,8.55e-05,2]
[335921933,1724601082822,4350.61770743,0.0001,2]
[335921934,1724601083842,409.03797965,8.55e-05,2]
[335921935,1724601085033,271.15585624,8.55e-05,2]
[335921936,1724601085060,485.49230641,8.55e-05,2]
[335921937,1724601087322,155.0,8.55e-05,2]
[335921938,1724601087350,413.27,8.55e-05,2]
[335921939,1724601087388,316.85497348,8.55e-05,2]
[335921940,1724601087631,197.52213077,8.55e-05,2]
[335921941,1724601088665,155.0,8.55e-05,2]
[335921942,1724601100044,197.1386879,8.55e-05,2]
[335921943,1724601100305,2114.38838798,0.0001,2]
[335921944,1724601102416,305.31993709,8.55e-05,2]
[335921945,1724601108497,155.06053397,8.55e-05,2]
[335921946,1724601115332,201.03768801,8.55e-05,2]
[335921947,1724601127334,155.0,8.55e-05,2]
[335921948,1724601130715,288.58231506,8.55e-05,2]
[335921949,1724601146350,1523.71588713,0.0001,2]
[335921950,1724601194583,1000.0,9.978e-05,2]
[335921951,1724601204240,485.24366207,0.0001,2]
[335921952,1724601218274,1051.59277113,0.0001,2]
[335921953,1724601221725,500.0,0.0001,2]
[335921954,1724601223922,813.35,0.00024657,120]
[335921955,1724601224198,813.35,0.00025342,120]
[335921956,1724601224466,813.35,0.00026027,120]
[335921957,1724601224754,813.35,0.00026712,120]
[335921958,1724601366855,155.0,9.999e-05,2]
[335921959,1724601446229,200.0,9.966e-05,2]
[335921960,1724601488761,252.57,8.219e-05,2]
[335921961,1724601686869,239.88,9.957e-05,2]
[335921963,1724601767685,200.0,9.945e-05,2]
[335921964,1724601869398,1094.46,0.00024657,120]
[335921965,1724601869760,1094.46,0.00025342,120]
[335921966,1724601870076,1094.46,0.00026027,120]
[335921967,1724601870408,1094.46,0.00026712,120]
[335921968,1724601975711,209.94,9.939e-05,2]
[335921969,1724601981125,239.94,8.219e-05,2]
[335921972,1724602057659,2000.000001,0.00027,120]
[335921973,1724602076691,180.776881,0.0001,2]
[335921974,1724602078917,7189.19426945,9.962e-05,2]
[335921975,1724602082689,2505.40041835,9.999e-05,2]
[335921976,1724602101117,357.45302385,9.999e-05,2]
[335921977,1724602147291,293.15641243,9.999e-05,2]
[335921978,1724602165099,155.0,9.999e-05,2]
[335921979,1724602179722,155.28541091,9.999e-05,2]
[335921980,1724602182455,6012.39543232,0.00027,120]
[335921993,1724602202606,150.0,9.999e-05,2]
[335921994,1724602202813,150.0,9.999e-05,2]
[335921995,1724602203013,150.0,9.999e-05,2]
[335921996,1724602203220,150.0,9.999e-05,2]
[335921997,1724602203412,150.0,9.999e-05,2]
[335921998,1724602203613,150.0,9.999e-05,2]
[335921999,1724602203840,150.0,9.999e-05,2]
[335922000,1724602204045,150.0,9.999e-05,2]
[335922016,1724602231575,-150.0,0.00010008,2]
[335922017,1724602231585,-150.0,0.00010166,2]
[335922018,1724602231595,-2425.04959483,0.00010326,2]
[335922019,1724602231605,-239.94,0.00010473,2]
[335922020,1724602231614,-1.49794517,0.00010566,2]
[335922021,1724602231838,-202.15867118,0.00010566,2]
[335922022,1724602231848,-32879.2761,0.00010698,2]
[335922023,1724602231857,-204.593063,0.00010713,2]
[335922024,1724602231866,-764.0,0.00010752,2]
[335922025,1724602231876,-8372.76,0.00010757,2]
[335922026,1724602231886,-192.43213496,0.00010799,2]
[335922027,1724602231895,-570.63546921,0.000108,2]
[335922028,1724602231905,-150.99,0.000108,2]
[335922029,1724602231914,-150.0,0.000108,2]
[335922030,1724602231923,-155.19086348,0.00010852,2]
[335922031,1724602231933,-155.0,0.00010852,2]
[335922032,1724602231942,-155.0,0.00010852,2]
[335922033,1724602231952,-499.99,0.00010857,2]
[335922034,1724602231962,-510.811,0.00010858,2]
[335922035,1724602231971,-2454.7959,0.00010858,2]
[335922036,1724602231980,-973.62659,0.0001088,2]
[335922037,1724602231990,-269.33423334,0.0001089,2]
[335922038,1724602231999,-150.86,0.0001089,2]
[335922039,1724602232009,-1935.02901852,0.00010899,2]
[335922040,1724602232018,-1935.02901851,0.00010899,2]
[335922041,1724602232027,-1935.02901851,0.00010899,2]
[335922042,1724602232037,-1935.02901851,0.00010899,2]
[335922043,1724602232046,-1935.02901851,0.00010899,2]
[335922044,1724602232055,-1935.02901851,0.00010899,2]
[335922045,1724602232065,-1935.02901851,0.00010899,2]
[335922046,1724602232075,-1935.02901851,0.00010899,2]
[335922047,1724602232088,-1935.02901851,0.00010899,2]
[335922048,1724602232098,-796.8656234,0.00010899,2]
[335922049,1724602232108,-609.43443036,0.00010899,2]
[335922050,1724602232118,-796.8656234,0.000109,2]
[335922051,1724602232127,-609.43443036,0.000109,2]
[335922052,1724602232137,-1935.02901851,0.000109,2]
[335922053,1724602232147,-500000.0,0.000109,2]
[335922054,1724602232159,-796.8656234,0.000109,2]
[335922055,1724602232168,-609.43443036,0.000109,2]
[335922056,1724602232178,-642.79791127,0.000109,2]
[335922057,1724602232188,-642.79791123,0.000109,2]
[335922058,1724602232198,-642.79791123,0.000109,2]
[335922059,1724602232207,-642.79791123,0.000109,2]
[335922060,1724602232216,-195.97939611,0.00010955,2]
[335922061,1724602232226,-1000.0,0.00010957,2]
[335922062,1724602232235,-500.0,0.00010958,2]
[335922063,1724602232245,-500.0,0.00010958,2]
[335922064,1724602232254,-500.0,0.00010958,2]
[335922065,1724602232263,-500.0,0.00010958,2]
[335922066,1724602232272,-500.0,0.00010958,2]
[335922067,1724602232282,-500.0,0.00010958,2]
[335922068,1724602232292,-500.0,0.00010958,2]
[335922069,1724602232301,-500.0,0.00010958,2]
[335922070,1724602232310,-500.0,0.00010958,2]
[335922071,1724602232319,-1000.94,0.00010958,2]
[335922072,1724602232328,-1000.94,0.00010958,2]
[335922073,1724602232338,-1000.94,0.00010958,2]
[335922074,1724602232346,-1000.94,0.00010958,2]
[335922075,1724602232355,-1000.94,0.00010958,2]
[335922076,1724602232364,-1000.94,0.00010958,2]
[335922077,1724602232374,-1000.94,0.00010958,2]
[335922078,1724602232383,-1000.94,0.00010958,2]
[335922079,1724602232393,-1000.94,0.00010958,2]
[335922080,1724602232402,-1000.94,0.00010958,2]
[335922081,1724602232411,-689.37,0.00010958,2]
[335922082,1724602232420,-689.37,0.00010958,2]
[335922083,1724602232430,-689.37,0.00010958,2]
[335922084,1724602232440,-689.37,0.00010958,2]
[335922085,1724602232449,-689.37,0.00010958,2]
[335922086,1724602232459,-689.37,0.00010958,2]
[335922087,1724602232468,-689.37,0.00010958,2]
[335922088,1724602232478,-689.37,0.00010958,2]
[335922089,1724602232487,-689.37,0.00010958,2]
[335922090,1724602232497,-689.37,0.00010958,2]
[335922091,1724602232506,-500.0,0.00010958,2]
[335922092,1724602232516,-253.4755676,0.00010958,2]
[335922093,1724602232526,-520.43,0.00010958,2]
[335922094,1724602232535,-352.02343892,0.00010958,2]
[335922095,1724602232544,-500.0,0.00010958,2]
[335922096,1724602232554,-500.0,0.00010958,2]
[335922097,1724602232563,-500.0,0.00010958,2]
[335922098,1724602232574,-500.0,0.00010958,2]
[335922099,1724602232583,-500.0,0.00010958,2]
[335922100,1724602232593,-500.0,0.00010958,2]
[335922101,1724602232603,-500.0,0.00010958,2]
[335922102,1724602232613,-500.0,0.00010958,2]
[335922103,1724602232622,-500.0,0.00010958,2]
[335922104,1724602232632,-500.0,0.00010958,2]
[335922105,1724602232641,-500.0,0.00010958,2]
[335922106,1724602232650,-649.70199893,0.00010958,2]
[335922107,1724602232660,-500.0,0.00010958,2]
[335922108,1724602232669,-500.0,0.00010958,2]
[335922109,1724602232679,-581.87783849,0.00010958,2]
[335922110,1724602232689,-500.0,0.00010958,2]
[335922111,1724602232699,-500.0,0.00010958,2]
[335922112,1724602232708,-500.0,0.00010958,2]
[335922113,1724602232718,-500.0,0.00010958,2]
[335922114,1724602232727,-500.0,0.00010958,2]
[335922115,1724602232737,-500.0,0.00010958,2]
[335922116,1724602232746,-226.42093535,0.00010958,2]
[335922117,1724602232755,-500.0,0.00010958,2]
[335922118,1724602232765,-500.0,0.00010958,2]
[335922119,1724602232774,-500.0,0.00010958,2]
[335922120,1724602232783,-500.0,0.00010958,2]
[335922121,1724602232792,-173.0160662,0.00010958,2]
[335922122,1724602232802,-562.51,0.00010958,2]
[335922123,1724602232811,-562.51,0.00010958,2]
[335922124,1724602232820,-562.51,0.00010958,2]
[335922125,1724602232829,-562.51,0.00010958,2]
[335922126,1724602232839,-562.51,0.00010958,2]
[335922127,1724602232848,-562.51,0.00010958,2]
[335922128,1724602232857,-562.51,0.00010958,2]
[335922129,1724602232866,-500.0,0.00010958,2]
[335922130,1724602232875,-562.51,0.00010958,2]
[335922131,1724602232884,-562.51,0.00010958,2]
[335922132,1724602232893,-562.51,0.00010958,2]
[335922133,1724602232902,-500.0,0.00010958,2]
[335922134,1724602232911,-500.0,0.00010958,2]
[335922135,1724602232920,-408.84192599,0.00010958,2]
[335922136,1724602232930,-500.0,0.00010958,2]
[335922137,1724602232939,-500.0,0.00010958,2]
[335922138,1724602232948,-500.0,0.00010958,2]
[335922139,1724602232957,-500.0,0.00010958,2]
[335922140,1724602232966,-500.0,0.00010958,2]
[335922141,1724602232975,-500.0,0.00010958,2]
[335922142,1724602232985,-500.0,0.00010958,2]
[335922143,1724602232994,-500.0,0.00010958,2]
[335922144,1724602233004,-500.0,0.00010958,2]
[335922145,1724602233013,-500.0,0.00010958,2]
[335922146,1724602233022,-500.0,0.00010958,2]
[335922147,1724602233032,-500.0,0.00010958,2]
[335922148,1724602233042,-500.0,0.00010958,2]
[335922149,1724602233051,-500.0,0.00010958,2]
[335922150,1724602233061,-500.0,0.00010958,2]
[335922151,1724602233070,-500.0,0.00010958,2]
[335922152,1724602233084,-500.0,0.00010958,2]
[335922153,1724602233094,-500.0,0.00010958,2]
[335922154,1724602233104,-500.0,0.00010958,2]
[335922155,1724602233113,-500.0,0.00010958,2]
[335922156,1724602233123,-500.0,0.00010958,2]
[335922157,1724602233133,-500.0,0.00010958,2]
[335922158,1724602233143,-500.0,0.00010958,2]
[335922159,1724602233154,-500.0,0.00010958,2]
[335922160,1724602233163,-500.0,0.00010958,2]
[335922161,1724602233174,-500.0,0.00010958,2]
[335922162,1724602233185,-500.0,0.00010958,2]
[335922163,1724602233206,-500.0,0.00010958,2]
[335922164,1724602233216,-500.0,0.00010958,2]
[335922165,1724602233225,-500.0,0.00010958,2]
[335922166,1724602233235,-500.0,0.00010958,2]
[335922167,1724602233244,-150.0,0.00010958,2]
[335922168,1724602233253,-825.67,0.00010958,2]
[335922169,1724602233262,-500.0,0.00010958,2]
[335922170,1724602233271,-500.0,0.00010958,2]
[335922171,1724602233282,-500.0,0.00010958,2]
[335922172,1724602233291,-500.0,0.00010958,2]
[335922173,1724602233301,-500.0,0.00010958,2]
[335922174,1724602233311,-500.0,0.00010958,2]
[335922175,1724602233320,-500.0,0.00010958,2]
[335922176,1724602233329,-500.0,0.00010958,2]
[335922177,1724602233338,-570.66,0.00010958,2]
[335922178,1724602233347,-500.0,0.00010958,2]
[335922179,1724602233356,-500.0,0.00010958,2]
[335922180,1724602233365,-500.0,0.00010958,2]
[335922181,1724602233376,-610.11,0.00010958,2]
[335922182,1724602233385,-500.0,0.00010958,2]
[335922183,1724602233395,-500.0,0.00010958,2]
[335922184,1724602233405,-500.0,0.00010958,2]
[335922185,1724602233415,-500.0,0.00010958,2]
[335922186,1724602233424,-500.0,0.00010958,2]
[335922187,1724602233434,-500.0,0.00010958,2]
[335922188,1724602233443,-915.02,0.00010958,2]
[335922189,1724602233453,-500.0,0.00010958,2]
[335922190,1724602233463,-3056.47,0.00010958,2]
[335922191,1724602233472,-500.0,0.00010958,2]
[335922192,1724602233481,-500.0,0.00010958,2]
[335922193,1724602233491,-500.0,0.00010958,2]
[335922194,1724602233500,-500.0,0.00010958,2]
[335922195,1724602233510,-500.0,0.00010958,2]
[335922196,1724602233520,-500.0,0.00010958,2]
[335922197,1724602233529,-500.0,0.00010958,2]
[335922198,1724602233539,-500.0,0.00010958,2]
[335922199,1724602233548,-500.0,0.00010958,2]
[335922200,1724602233558,-500.0,0.00010958,2]
[335922201,1724602233568,-500.0,0.00010958,2]
[335922202,1724602233578,-500.0,0.00010958,2]
[335922203,1724602233587,-500.0,0.00010958,2]
[335922204,1724602233597,-500.0,0.00010958,2]
[335922205,1724602233606,-1919.0,0.00010958,2]
[335922206,1724602233616,-368.98,0.00010958,2]
[335922207,1724602233626,-500.0,0.00010958,2]
[335922208,1724602233636,-500.0,0.00010958,2]
[335922209,1724602233646,-500.0,0.00010958,2]
[335922210,1724602233655,-500.0,0.00010958,2]
[335922211,1724602233665,-500.0,0.00010958,2]
[335922212,1724602233674,-500.0,0.00010958,2]
[335922213,1724602233684,-500.0,0.00010958,2]
[335922214,1724602233695,-500.0,0.00010958,2]
[335922215,1724602233704,-500.0,0.00010958,2]
[335922216,1724602233714,-500.0,0.00010958,2]
[335922217,1724602233723,-500.0,0.00010958,2]
[335922218,1724602233733,-500.0,0.00010958,2]
[335922219,1724602233742,-500.0,0.00010958,2]
[335922220,1724602233752,-991.46,0.00010958,2]
[335922221,1724602233762,-669.68,0.00010958,2]
[335922222,1724602233772,-669.68,0.00010958,2]
[335922223,1724602233781,-669.68,0.00010958,2]
[335922224,1724602233791,-669.68,0.00010958,2]
[335922225,1724602233800,-1454.21,0.00010958,2]
[335922226,1724602233809,-669.68,0.00010958,2]
[335922227,1724602233819,-669.68,0.00010958,2]
[335922228,1724602233828,-669.68,0.00010958,2]
[335922229,1724602233838,-669.68,0.00010958,2]
[335922230,1724602233847,-669.68,0.00010958,2]
[335922231,1724602233857,-669.68,0.00010958,2]
[335922232,1724602233867,-4449.25,0.00010958,2]
[335922233,1724602233876,-1350.09,0.00010958,2]
[335922234,1724602233886,-495.54,0.00010958,2]
[335922235,1724602233895,-500.0,0.00010958,2]
[335922236,1724602233905,-500.0,0.00010958,2]
[335922237,1724602233914,-188.09577526,0.00010958,2]
[335922238,1724602233924,-500.0,0.00010958,2]
[335922239,1724602233933,-500.0,0.00010958,2]
[335922240,1724602233943,-500.0,0.00010958,2]
[335922241,1724602233953,-221.17803657,0.00010958,2]
[335922242,1724602233963,-196.80014843,0.00010958,2]
[335922243,1724602233972,-500.0,0.00010958,2]
[335922244,1724602233981,-510.97,0.00010958,2]
[335922245,1724602233990,-337.40121489,0.00010958,2]
[335922246,1724602233999,-500.0,0.00010958,2]